bitfinex-derivatives/quotes_SOLF0:USTF0_20250703
["timestamp","ask_amount","ask_price","bid_price","bid_amount"]
[1751526966561,6.4451,155.11,155.08,6.4461]
[1751526969161,10.10559925,155.12,155.08,6.4461]
[1751526969361,3.66099925,155.12,155.08,6.4461]
[1751526969965,10.10579925,155.12,155.08,6.4461]
[1751526970664,3.66099925,155.12,155.09,6.4456]
[1751526970966,3.66099925,155.12,155.07,230.94]
[1751526971268,3.66099925,155.12,155.09,6.4455]
[1751526974469,47.98099925,155.15,155.08,3.66099925]
[1751526974670,47.98099925,155.15,155.08,5.80869925]
[1751526974865,3.66099925,155.15,155.08,5.80869925]
[1751526975467,4.5335,155.18,155.08,5.80869925]
[1751526975667,3.66099925,155.16,155.08,5.80869925]
[1751526976169,6.4435,155.15,155.11,6.4447]
[1751526977570,3.66099925,155.16,155.08,5.80869925]
[1751526977571,10.10399925,155.16,155.12,6.4444]
[1751526977776,3.66099925,155.16,155.11,186.58]
[1751526978168,3.66099925,155.16,155.13,6.4438]
[1751526978471,3.66099925,155.16,155.12,44.3]
[1751526978670,3.66099925,155.16,155.14,6.4434]
[1751526979973,3.66099925,155.16,155.13,6.4439]
[1751526980273,10.10389925,155.16,155.13,6.4439]
[1751526981173,3.66099925,155.16,155.13,6.4439]
[1751526981974,10.10379925,155.16,155.13,6.4439]
[1751526982171,3.66099925,155.16,155.13,6.4439]
[1751526982666,3.66099925,155.16,155.12,44.3]
[1751526983170,3.66099925,155.16,155.13,6.4437]
[1751526984472,3.66099925,155.16,155.12,44.3]
[1751526984774,6.4426,155.17,155.12,44.3]
[1751526984978,10.10359925,155.17,155.12,44.3]
[1751526985172,10.10359925,155.17,155.14,6.4436]
[1751526986277,10.10359925,155.17,155.13,6.4439]
[1751526986476,10.10359925,155.17,155.12,44.3]
[1751526986776,10.10359925,155.17,155.13,6.4438]
[1751526988879,6.4429,155.16,155.13,6.4438]
[1751526989574,46.5225,155.22,155.12,44.3]
[1751526989779,3.66099925,155.18,155.12,44.3]
[1751526990180,3.66099925,155.18,155.16,6.4428]
[1751526995583,3.66099925,155.18,155.15,6.4429]
[1751526995784,3.66099925,155.18,155.12,49.47395019]
[1751526997088,3.66099925,155.18,155.16,6.4428]
[1751526999590,3.66099925,155.18,155.15,6.443]
[1751526999988,3.66099925,155.18,155.12,49.47395019]
[1751527000790,6.4413,155.2,155.12,49.47395019]
[1751527000989,3.66099925,155.19,155.12,53.13494944]
[1751527002589,3.66099925,155.21,155.14,3.66099925]
[1751527002982,3.66099925,155.21,155.19,6.4415]
[1751527003287,3.66099925,155.23,155.17,44.28]
[1751527003587,3.66099925,155.23,155.2,6.4409]
[1751527003988,3.66099925,155.23,155.17,46.5556]
[1751527004293,3.66099925,155.23,155.19,6.4414]
[1751527005293,6.4404,155.22,155.19,6.4414]
[1751527005494,3.66099925,155.23,155.19,6.4414]
[1751527005891,10.10119925,155.23,155.19,6.4414]
[1751527006193,3.66099925,155.21,155.18,6.4418]
[1751527006496,3.66099925,155.21,155.17,46.5556]
[1751527007397,3.66099925,155.21,155.18,6.4417]
[1751527007696,3.66099925,155.21,155.17,46.5556]
[1751527008497,3.66099925,155.21,155.18,6.4418]
[1751527009197,3.66099925,155.21,155.19,6.4414]
[1751527013897,3.66099925,155.21,155.18,6.4418]
[1751527017209,3.66099925,155.21,155.19,6.4416]
[1751527017811,2.33783171,155.2,155.19,6.4416]
[1751527018412,6.4401,155.23,155.19,6.4416]
[1751527018614,2.33783171,155.21,155.2,6.4411]
[1751527019514,2.33783171,155.21,155.18,6.4418]
[1751527022318,2.33783171,155.2,155.17,55.33573171]
[1751527023320,2.33783171,155.2,155.17,52.9979]
[1751527024817,2.33783171,155.2,155.18,6.442]
[1751527025220,6.4406,155.22,155.18,6.442]
[1751527025419,2.33783171,155.2,155.18,6.442]
[1751527025619,2.33783171,155.21,155.18,6.442]
[1751527027424,2.33783171,155.2,155.18,6.442]
[1751527029324,6.4406,155.22,155.18,6.442]
[1751527029526,2.33783171,155.2,155.18,6.442]
[1751527029727,2.33783171,155.2,155.17,52.9978]
[1751527030928,2.33783171,155.2,155.18,6.4418]
[1751527031130,2.33783171,155.21,155.17,48.89343171]
[1751527031428,2.33783171,155.22,155.18,2.33783171]
[1751527031631,6.4392,155.25,155.2,2.33783171]
[1751527031829,2.33783171,155.24,155.2,2.33783171]
[1751527032031,47.41758486,155.28,155.2,2.33783171]
[1751527032230,2.33783171,155.25,155.2,2.33783171]
[1751527032929,2.33783171,155.25,155.21,6.4405]
[1751527033125,2.33783171,155.24,155.21,6.4405]
[1751527033326,2.33783171,155.24,155.2,2.33783171]
[1751527033928,6.4388,155.26,155.21,2.33783171]
[1751527034129,2.33783171,155.24,155.22,50.7001]
[1751527037232,2.33783171,155.24,155.22,44.26]
[1751527037532,2.33783171,155.25,155.22,44.26]
[1751527039235,2.33783171,155.24,155.22,44.26]
[1751527040535,2.33783171,155.24,155.22,50.7002]
[1751527041639,2.33783171,155.23,155.22,44.26]
[1751527043339,47.63265868,155.33,155.22,46.59783171]
[1751527043637,2.33783171,155.25,155.23,2.2041]
[1751527043939,2.33783171,155.24,155.23,2.2041]
[1751527044236,2.33783171,155.24,155.22,44.26]
[1751527044636,2.33783171,155.23,155.22,44.26]
[1751527046141,2.33783171,155.23,155.22,50.7003]
[1751527046438,2.33783171,155.23,155.2,556.44]
[1751527046636,2.33783171,155.21,155.19,6.4413]
[1751527046836,2.33783171,155.2,155.19,6.4413]
[1751527047041,6.4401,155.23,155.18,44.22]
[1751527047346,2.33783171,155.21,155.19,6.4413]
[1751527047644,2.33783171,155.2,155.18,50.6618]
[1751527047944,2.33783171,155.19,155.18,44.22]
[1751527048140,2.33783171,155.21,155.2,6.4409]
[1751527048843,2.33783171,155.21,155.19,6.4414]
[1751527051341,2.33783171,155.21,155.18,50.6618]
[1751527051538,2.33783171,155.21,155.18,44.22]
[1751527051842,2.33783171,155.19,155.18,44.22]
[1751527053030,8.77943171,155.19,155.18,44.22]
[1751527053343,2.33783171,155.19,155.18,44.22]
[1751527053640,2.33783171,155.19,155.16,6.4427]
[1751527053842,2.33783171,155.18,155.16,6.4427]
[1751527055046,2.33783171,155.17,155.15,44.22]
[1751527055246,2.33783171,155.16,155.15,44.22]
[1751527058844,8.78063171,155.16,155.15,44.22]
[1751527059250,8.78063171,155.16,155.12,55.85815019]
[1751527059550,2.33783171,155.14,155.12,49.41395019]
[1751527060350,2.33783171,155.14,155.12,55.85835019]
[1751527060551,2.33783171,155.14,155.12,49.41395019]
[1751527061652,6.4429,155.16,155.12,55.85835019]
[1751527061847,2.33783171,155.15,155.12,55.85835019]
[1751527062042,2.33783171,155.15,155.12,49.41395019]
[1751527062246,6.4426,155.17,155.13,6.4439]
[1751527062449,2.33783171,155.17,155.13,2.33783171]
[1751527063153,8.78033171,155.17,155.13,8.78163171]
[1751527063553,2.33783171,155.16,155.13,8.78163171]
[1751527063853,2.33783171,155.16,155.13,6.4438]
[1751527065760,6.4425,155.17,155.13,6.4438]
[1751527067368,6.4428,155.16,155.12,55.85825019]
[1751527067560,3.65491226,155.18,155.12,55.85825019]
[1751527068163,6.4428,155.16,155.12,55.85825019]
[1751527068367,3.65491226,155.16,155.12,49.41395019]
[1751527068862,10.09801226,155.16,155.12,55.85835019]
[1751527071758,10.09801226,155.16,155.13,6.4439]
[1751527071960,3.65491226,155.16,155.12,49.41395019]
[1751527072460,3.65491226,155.16,155.13,6.4438]
[1751527073065,3.65491226,155.18,155.13,6.4438]
[1751527073263,6.4426,155.17,155.13,6.4438]
[1751527073465,3.65491226,155.18,155.12,55.85825019]
[1751527074065,6.4425,155.17,155.13,6.444]
[1751527074371,3.65491226,155.18,155.13,6.444]
[1751527075770,6.4431,155.16,155.12,55.85825019]
[1751527076773,6.4431,155.16,155.12,55.85815019]
[1751527078874,6.4433,155.15,155.12,55.85815019]
[1751527080273,6.4438,155.14,155.12,49.41395019]
[1751527081875,6.4434,155.15,155.12,55.85845019]
[1751527082578,6.4437,155.14,155.12,55.85845019]
[1751527082778,3.65491226,155.14,155.12,49.41395019]
[1751527082977,3.65491226,155.14,155.12,5.17395019]
[1751527083178,6.444,155.13,155.12,5.17395019]
[1751527085876,8.78474207,155.13,155.12,5.17395019]
[1751527086779,6.4457,155.09,155.08,44.24]
[1751527087074,2.34074207,155.09,154.96,230.58]
[1751527087279,2.34074207,155.02,154.98,2.34074207]
[1751527087482,2.34074207,155.03,154.99,2.34074207]
[1751527087980,2.34074207,155.03,155.0,6.449]
[1751527088281,2.34074207,155.03,155.01,44.24]
[1751527088878,6.4478,155.04,155.01,44.24]
[1751527089079,2.34074207,155.03,155.01,44.24]
[1751527089582,6.4482,155.03,155.01,44.24]
[1751527089781,3.66142237,155.04,155.01,44.24]
[1751527090282,6.4483,155.03,155.01,44.24]
[1751527090484,3.66142237,155.04,155.01,50.6888]
[1751527090682,3.66142237,155.04,155.01,44.24]
[1751527090885,10.10892237,155.05,155.01,44.24]
[1751527091083,10.10892237,155.05,155.01,50.6888]
[1751527091385,3.66142237,155.05,155.01,50.6888]
[1751527091583,6.4479,155.04,155.01,50.6888]
[1751527091780,3.66142237,155.05,155.02,6.4485]
[1751527092186,3.66142237,155.05,155.01,50.6886]
[1751527092686,10.10902237,155.05,155.01,50.6886]
[1751527093190,10.10902237,155.05,155.02,6.4485]
[1751527094388,6.447,155.06,155.03,6.4481]
[1751527094590,10.10842237,155.06,155.03,6.4481]
[1751527096291,10.10842237,155.06,155.02,6.4485]
[1751527097288,6.4474,155.05,155.01,50.6889]
[1751527097692,3.66142237,155.04,155.01,44.24]
[1751527097893,3.66142237,155.02,155.01,44.24]
[1751527098387,10.11002237,155.02,155.01,44.24]
[1751527101094,6.4486,155.02,155.01,44.24]
[1751527101291,3.66142237,155.03,155.01,44.24]
[1751527101693,6.4486,155.02,155.01,44.24]
[1751527101894,3.66142237,155.03,155.01,44.24]
[1751527102494,10.10982237,155.03,155.01,44.24]
[1751527102793,3.66142237,155.05,155.01,44.24]
[1751527103791,3.66142237,155.07,155.01,44.24]
[1751527103992,6.4474,155.05,155.02,6.4484]
[1751527105490,6.448,155.04,155.01,50.689]
[1751527106596,10.10952237,155.03,155.01,44.24]
[1751527107199,6.4486,155.02,155.01,44.24]
[1751527108095,10.10972237,155.03,155.01,44.24]
[1751527109191,6.4486,155.02,155.01,44.24]
[1751527110599,10.10972237,155.03,155.01,44.24]
[1751527112500,3.66142237,155.06,155.01,44.24]
[1751527113001,6.4477,155.05,155.02,6.4484]
[1751527113801,6.4478,155.04,155.01,50.6888]
[1751527114600,6.4475,155.05,155.02,6.4485]
[1751527115603,6.4477,155.04,155.02,6.4485]
[1751527117301,6.4477,155.04,155.01,50.6888]
[1751527117601,3.66142237,155.06,155.01,50.6888]
[1751527117903,3.66142237,155.04,155.01,44.24]
[1751527118702,3.66142237,155.04,155.01,50.6888]
[1751527118899,3.66142237,155.04,155.01,44.24]
[1751527119604,10.10932237,155.04,155.02,6.4485]
[1751527119804,3.66142237,155.04,155.01,44.24]
[1751527120302,6.4484,155.03,155.01,50.6889]
[1751527121007,6.4479,155.04,155.02,6.4486]
[1751527121607,6.4479,155.04,155.01,50.6887]
[1751527122310,3.66142237,155.05,155.01,50.6887]
[1751527122311,6.4483,155.03,155.01,50.6887]
[1751527122910,6.448,155.04,155.01,50.6887]
[1751527123211,3.66142237,155.05,155.01,44.24]
[1751527123410,6.4484,155.03,155.01,44.24]
[1751527124010,6.4484,155.03,155.01,50.689]
[1751527124307,6.4484,155.03,155.01,44.24]
[1751527126509,6.4479,155.04,155.01,50.6889]
[1751527127210,6.4482,155.03,155.01,50.6889]
[1751527127509,3.66142237,155.05,155.01,50.6889]
[1751527127709,6.4481,155.04,155.01,50.6889]
[1751527128511,3.66142237,155.05,155.01,44.24]
[1751527129510,6.4479,155.04,155.02,6.4483]
[1751527129909,6.4479,155.04,155.01,44.24]
[1751527130210,3.66142237,155.05,155.01,44.24]
[1751527130411,6.4478,155.04,155.01,50.6888]
[1751527130610,3.66142237,155.05,155.01,44.24]
[1751527130811,6.4486,155.02,155.01,44.24]
[1751527133715,3.66142237,155.03,154.97,6.4503]
[1751527133914,3.66142237,155.03,154.98,44.26]
[1751527134212,6.4494,155.01,154.98,44.26]
[1751527134513,6.4494,155.01,154.98,50.71]
[1751527134714,6.4494,155.01,154.98,44.26]
[1751527135313,6.4494,155.01,154.98,50.7101]
[1751527135614,6.4496,155.0,154.98,44.26]
[1751527136615,6.4496,155.0,154.98,50.7101]
[1751527136816,6.4492,155.01,154.98,50.7101]
[1751527139818,6.4495,155.0,154.98,44.26]
[1751527142023,6.4495,155.0,154.98,50.7102]
[1751527142722,6.4492,155.01,154.98,50.7102]
[1751527143219,6.4488,155.02,154.99,6.4498]
[1751527143719,3.66142237,155.03,154.99,6.4498]
[1751527144016,6.449,155.01,154.98,50.71]
[1751527146319,6.4495,155.0,154.98,44.26]
[1751527146714,3.66142237,155.03,154.98,44.26]
[1751527147017,6.4492,155.01,154.98,44.26]
[1751527147323,6.4492,155.01,154.98,50.71]
[1751527149926,6.4492,155.01,154.98,44.26]
[1751527150419,6.4492,155.01,154.98,50.71]
[1751527153728,8.79275157,155.01,154.98,50.71]
[1751527153929,6.4494,155.0,154.98,50.71]
[1751527154123,2.34355157,155.01,154.98,50.71]
[1751527154930,8.79285157,155.01,154.98,50.71]
[1751527155226,2.34355157,155.0,154.98,44.26]
[1751527155633,8.79325157,155.0,154.98,44.26]
[1751527155931,2.34355157,155.0,154.98,44.26]
[1751527156130,6.4498,154.99,154.98,44.26]
[1751527156630,2.34355157,155.0,154.98,50.7101]
[1751527156831,8.79315157,155.0,154.98,50.7101]
[1751527159435,6.4498,154.99,154.98,44.26]
[1751527159633,8.79335157,154.99,154.98,44.26]
[1751527161437,2.34355157,154.99,154.96,4.4409]
[1751527161733,44.26,155.03,154.93,2.34355157]
[1751527161936,2.34355157,154.97,154.93,2.34355157]
[1751527162140,8.79435157,154.97,154.94,50.7116]
[1751527163130,6.4511,154.96,154.94,44.26]
[1751527163435,8.79465157,154.96,154.94,44.26]
[1751527163837,6.4511,154.96,154.94,44.26]
[1751527164037,6.4515,154.95,154.94,44.26]
[1751527164242,3.66416304,154.96,154.91,44.28]
[1751527164435,3.66416304,154.95,154.91,44.28]
[1751527164936,2.2509,155.01,154.91,50.7331]
[1751527165237,3.66416304,154.95,154.91,50.7331]
[1751527165834,6.4522,154.94,154.91,50.7331]
[1751527166233,3.66416304,154.95,154.91,44.28]
[1751527166438,6.452,154.94,154.91,44.28]
[1751527166839,6.452,154.94,154.91,50.7329]
[1751527167340,6.4524,154.93,154.91,44.28]
[1751527168638,6.4521,154.94,154.91,50.7331]
[1751527168940,6.4521,154.94,154.91,44.28]
[1751527169134,3.66416304,154.95,154.91,44.28]
[1751527169335,3.66416304,154.93,154.9,5.17395019]
[1751527169539,3.66416304,154.91,154.85,44.28]
[1751527169840,3.66416304,154.9,154.85,44.28]
[1751527170238,6.454,154.89,154.85,50.7355]
[1751527170438,6.454,154.89,154.85,44.28]
[1751527170737,3.66416304,154.9,154.85,44.28]
[1751527170937,3.66416304,154.9,154.86,6.455]
[1751527171337,6.4543,154.89,154.85,50.7355]
[1751527171637,10.11846304,154.89,154.85,44.28]
[1751527171840,6.455,154.87,154.85,44.28]
[1751527172240,3.66416304,154.87,154.85,44.28]
[1751527172637,3.66416304,154.87,154.68,67.17395019]
[1751527172934,44.28,154.93,154.79,3.66416304]
[1751527173139,3.66416304,154.86,154.83,6.4562]
[1751527173444,3.66416304,154.87,154.83,6.4562]
[1751527173841,10.11926304,154.87,154.83,6.4562]
[1751527174039,3.66416304,154.87,154.82,6.4567]
[1751527174346,6.4553,154.86,154.82,6.4567]
[1751527174732,6.4553,154.86,154.83,6.4564]
[1751527175139,3.66416304,154.87,154.82,6.4568]
[1751527175344,10.11996304,154.85,154.82,6.4568]
[1751527175641,3.66416304,154.85,154.82,6.4568]
[1751527177048,10.11976304,154.85,154.82,6.4568]
[1751527177550,10.11936304,154.87,154.81,4.4983]
[1751527177843,3.66416304,154.87,154.81,6.682]
[1751527178246,6.4557,154.85,154.82,6.4567]
[1751527178445,10.11986304,154.85,154.82,6.4567]
[1751527178849,3.66416304,154.85,154.82,6.4567]
[1751527179040,3.66416304,154.85,154.83,6.4564]
[1751527179236,44.28,154.92,154.83,6.4564]
[1751527179442,3.66416304,154.86,154.83,6.4564]
[1751527180750,10.11966304,154.86,154.82,6.4568]
[1751527181348,10.11966304,154.86,154.83,6.4565]
[1751527182550,10.11966304,154.86,154.84,6.4561]
[1751527183955,6.4549,154.87,154.84,6.4561]
[1751527184152,3.66416304,154.91,154.85,44.3]
[1751527184755,6.4536,154.9,154.87,6.4545]
[1751527185655,3.66416304,154.89,154.87,6.4545]
[1751527186153,3.66416304,154.89,154.86,6.4549]
[1751527186554,10.11826304,154.89,154.86,6.4549]
[1751527186753,3.66416304,154.89,154.86,6.4549]
[1751527187655,6.4538,154.9,154.87,6.4547]
[1751527187858,3.66416304,154.9,154.85,44.3]
[1751527188156,6.454,154.89,154.86,6.4549]
[1751527188356,3.66416304,154.91,154.85,44.3]
[1751527188959,3.66416304,154.93,154.86,3.66416304]
[1751527189352,3.66416304,154.93,154.86,190.78416304]
[1751527189849,6.453,154.92,154.88,6.4543]
[1751527190050,3.66416304,154.93,154.87,2.2764]
[1751527190457,6.4531,154.92,154.87,2.2764]
[1751527191058,6.4532,154.91,154.88,6.4541]
[1751527191859,6.4529,154.92,154.89,6.4539]
[1751527193760,44.3,154.97,154.9,6.4533]
[1751527193961,3.66416304,154.95,154.9,6.4533]
[1751527194156,3.66416304,154.95,154.9,50.9133]
[1751527194757,3.66416304,154.95,154.9,44.46]
[1751527195262,3.66416304,154.94,154.9,50.9135]
[1751527195561,3.66416304,154.94,154.9,44.46]
[1751527195864,6.4521,154.94,154.91,6.4531]
[1751527200358,2.1648,155.0,154.9,231.38]
[1751527200359,3.66416304,155.0,154.9,231.38]
[1751527200557,3.66416304,155.0,154.92,3.66416304]
[1751527200766,3.66416304,154.98,154.92,3.66416304]
[1751527201665,6.4511,154.96,154.93,6.4521]
[1751527201857,3.66416304,154.98,154.92,3.66416304]
[1751527203369,6.4509,154.97,154.94,6.4518]
[1751527204566,6.4511,154.96,154.93,6.4521]
[1751527204767,3.66416304,154.96,154.9,44.46]
[1751527204967,3.66416304,154.94,154.9,44.46]
[1751527206170,3.66416304,154.94,154.9,231.36]
[1751527206370,3.66416304,154.94,154.91,6.4528]
[1751527206571,10.11616304,154.94,154.91,6.4528]
[1751527211373,6.452,154.94,154.91,6.4528]
[1751527211670,10.11586304,154.95,154.91,6.4529]
[1751527211972,3.66416304,154.93,154.9,44.46]
[1751527212176,3.66416304,154.91,154.9,44.46]
[1751527212572,10.11726304,154.91,154.9,44.46]
[1751527214380,6.7172,154.98,154.9,44.46]
[1751527214677,3.66416304,154.94,154.9,44.46]
[1751527214876,6.4527,154.92,154.9,44.46]
[1751527215377,3.66416304,154.94,154.9,44.46]
[1751527215581,6.4525,154.93,154.9,44.46]
[1751527216078,10.11626304,154.94,154.9,50.9132]
[1751527216279,3.66416304,154.96,154.9,44.46]
[1751527217576,6.4518,154.95,154.91,6.4529]
[1751527218571,6.4518,154.95,154.92,6.4527]
[1751527219182,10.11536304,154.96,154.92,6.4527]
[1751527219681,3.66416304,154.96,154.92,6.4527]
[1751527219979,3.66416304,154.96,154.93,6.4523]
[1751527220683,10.11546304,154.96,154.93,6.4523]
[1751527221183,10.11546304,154.96,154.92,6.4525]
[1751527223380,6.4515,154.95,154.91,6.453]
[1751527224087,6.452,154.94,154.9,50.9134]
[1751527224281,3.66416304,154.92,154.9,44.46]
[1751527225087,3.66416304,154.92,154.87,2.2764]
[1751527225288,3.66416304,154.92,154.88,44.36]
[1751527225587,6.4531,154.91,154.88,50.8141]
[1751527225789,6.4531,154.91,154.88,6.4541]
[1751527225988,6.4531,154.91,154.88,50.8141]
[1751527226598,6.4537,154.9,154.88,44.36]
[1751527227196,6.454,154.89,154.88,44.36]
[1751527227397,3.66416304,154.9,154.88,44.36]
[1751527228496,3.66416304,154.92,154.88,44.36]
[1751527228898,3.66416304,154.93,154.88,44.36]
[1751527229796,10.11686304,154.93,154.89,6.4536]
[1751527229999,3.66416304,154.93,154.89,6.4536]
[1751527230901,6.4527,154.92,154.89,6.4536]
[1751527233302,10.11666304,154.93,154.89,6.4536]
[1751527233506,10.11666304,154.93,154.9,6.4535]
[1751527237406,10.11666304,154.93,154.89,6.4538]
[1751527238211,3.66416304,154.93,154.9,6.4535]
[1751527238402,3.66416304,154.95,154.9,6.4535]
[1751527238604,3.66416304,154.95,154.88,44.36]
[1751527238804,6.4519,154.94,154.88,44.36]
[1751527239210,6.4519,154.94,154.9,6.4532]
[1751527239604,6.4519,154.94,154.88,44.36]
[1751527239810,6.4519,154.94,154.89,3.66416304]
[1751527240109,6.4519,154.94,154.91,6.4529]
[1751527241615,6.4519,154.94,154.91,50.8129]
[1751527241914,6.4517,154.95,154.92,6.4527]
[1751527242415,6.4517,154.95,154.91,50.8128]
[1751527242914,6.4517,154.95,154.92,6.4525]
[1751527243114,10.11536304,154.96,154.91,44.36]
[1751527243413,3.66416304,154.96,154.91,44.36]
[1751527243909,6.4515,154.95,154.92,6.4525]
[1751527244113,3.66416304,154.96,154.92,6.4525]
[1751527244513,10.11546304,154.96,154.93,6.4523]
[1751527247617,3.66416304,154.96,154.94,6.4519]
[1751527248818,10.11456304,154.98,154.94,6.4519]
[1751527249019,3.66416304,155.0,154.93,3.66416304]
[1751527249220,6.448,155.11,154.93,3.66416304]
[1751527249522,6.449,155.01,154.98,6.4501]
[1751527249714,3.66416304,155.02,154.98,50.7501]
[1751527249922,10.11286304,155.02,154.98,44.3]
[1751527250219,3.66416304,155.02,154.98,44.3]
[1751527250815,44.3,155.09,154.98,44.3]
[1751527250816,3.66416304,155.0,154.98,44.3]
[1751527251119,6.4498,154.99,154.98,44.3]
[1751527252222,12.8937,155.07,154.98,44.3]
[1751527252427,3.66416304,155.01,154.98,44.3]
[1751527253022,6.4496,155.0,154.98,44.3]
[1751527253417,3.66416304,155.01,154.98,44.3]
[1751527253619,10.11396304,154.99,154.98,44.3]
[1751527260624,6.4498,154.99,154.98,44.3]
[1751527260828,6.4496,155.0,154.98,44.3]
[1751527262023,6.4498,154.99,154.98,44.3]
[1751527263731,6.4495,155.0,154.98,44.3]
[1751527265430,6.4498,154.99,154.98,44.3]
[1751527265928,3.66416304,155.01,154.98,44.3]
[1751527266125,6.4496,155.0,154.98,44.3]
[1751527269021,3.66416304,155.03,154.98,44.3]
[1751527269226,3.66416304,155.05,154.98,44.3]
[1751527269632,6.4482,155.03,155.0,6.4492]
[1751527269828,6.4482,155.03,155.01,186.58]
[1751527272032,6.4479,155.04,155.01,186.58]
[1751527273135,6.4479,155.04,155.01,193.0289]
[1751527274536,3.66416304,155.05,155.01,193.0289]
[1751527275135,3.66416304,155.05,155.01,186.58]
[1751527275637,6.4483,155.03,155.01,186.58]
[1751527275845,3.66416304,155.03,155.01,186.58]
[1751527276536,10.11256304,155.03,155.01,186.58]
[1751527277236,6.4486,155.02,155.01,186.58]
[1751527278337,3.66416304,155.03,154.99,186.54]
[1751527278540,3.66416304,155.01,154.99,186.54]
[1751527278839,6.4489,155.02,154.99,192.9896]
[1751527280336,3.66416304,155.03,154.99,186.54]
[1751527280547,3.66416304,155.05,154.99,186.54]
[1751527281441,6.4481,155.04,155.01,6.4488]
[1751527282440,6.4481,155.04,155.0,6.4492]
[1751527282839,3.66416304,155.03,154.99,186.54]
[1751527283642,6.4489,155.02,154.99,186.54]
[1751527284442,6.4491,155.01,154.99,186.54]
[1751527285546,3.66416304,155.03,154.99,186.54]
[1751527286244,3.66416304,155.03,155.0,6.4493]
[1751527287545,3.66416304,155.03,155.01,6.449]
[1751527287743,6.4481,155.04,155.01,6.449]
[1751527288246,5.99281859,155.06,154.99,190.20416304]
[1751527288443,3.66416304,155.07,154.99,190.20416304]
[1751527288844,6.4475,155.05,154.99,190.20416304]
[1751527289247,6.4477,155.04,155.01,6.4487]
[1751527289545,3.66416304,155.07,155.01,6.4487]
[1751527289846,3.66416304,155.07,154.99,190.20416304]
[1751527290052,6.4474,155.05,155.02,6.4483]
[1751527292848,6.4471,155.06,155.03,44.28]
[1751527293749,6.4474,155.05,155.03,44.28]
[1751527296654,6.4474,155.05,155.03,50.7281]
[1751527299554,3.66416304,155.07,155.03,50.7281]
[1751527299555,6.4471,155.06,155.03,50.7281]
[1751527302256,10.11086304,155.07,155.04,6.4477]
[1751527302454,3.66416304,155.07,155.03,44.28]
[1751527303557,6.4469,155.06,155.03,50.7279]
[1751527303956,3.66416304,155.07,155.03,50.7279]
[1751527304159,6.4477,155.04,155.03,44.28]
[1751527306258,10.11166304,155.05,155.03,44.28]
[1751527306459,10.11166304,155.05,155.03,50.7281]
[1751527308459,6.4475,155.05,155.03,50.7281]
[1751527309148,6.4475,155.05,155.03,44.28]
[1751527310259,6.4477,155.04,155.03,44.28]
[1751527310758,6.4475,155.05,155.03,44.28]
[1751527311760,6.4475,155.05,155.03,50.7281]
[1751527311961,3.66416304,155.06,155.03,44.28]
[1751527312461,9.65698163,155.06,155.03,44.28]
[1751527312859,6.4475,155.05,155.03,44.28]
[1751527313962,12.44001859,155.06,155.03,44.28]
[1751527314156,6.4472,155.06,155.03,44.28]
[1751527315558,10.11076304,155.07,155.03,44.28]
[1751527316266,6.4461,155.08,155.03,44.28]
[1751527316864,6.4461,155.08,155.05,6.4471]
[1751527318063,10.10996304,155.09,155.05,6.4471]
[1751527318268,3.66416304,155.09,155.05,6.4471]
[1751527318463,3.66416304,155.07,155.02,6.8078]
[1751527318665,3.66416304,155.05,155.02,51.0678]
[1751527319265,10.11176304,155.05,155.02,51.0678]
[1751527319768,6.4476,155.05,155.02,57.5163]
[1751527320068,10.11176304,155.05,155.02,57.5163]
[1751527321170,6.4477,155.04,155.02,57.5163]
[1751527322468,10.11166304,155.05,155.02,51.0678]
[1751527322669,3.66416304,155.05,155.02,51.0678]
[1751527322871,3.66416304,155.05,155.02,44.26]